[Event "*** SCC Grand Prix: Titled Tuesday Blitz"]
[Site "Chess.com"]
[Date "2020.10.13"]
[Round "8"]
[White "Quiet_Desperation"]
[Black "katchesskat"]
[Result "0-1"]
[WhiteElo "1912"]
[BlackElo "2250"]
[TimeControl "180+1"]
[EndTime "11:33:21 PDT"]
[Termination "katchesskat won by resignation"]

1. e4 {[%clk 0:03:00.9]} 1... c6 {[%clk 0:02:56.2]} 2. d4 {[%clk 0:03:00.1]}
2... d5 {[%clk 0:02:55.5]} 3. exd5 {[%clk 0:03:01]} 3... cxd5 {[%clk 0:02:53.5]}
4. c4 {[%clk 0:03:01.9]} 4... Nf6 {[%clk 0:02:50.2]} 5. Nf3 {[%clk 0:03:01.9]}
5... Bg4 {[%clk 0:02:46.3]} 6. Qb3 {[%clk 0:03:00.2]} 6... Bxf3 {[%clk 0:02:42]}
7. Qxf3 {[%clk 0:02:55.9]} 7... Nc6 {[%clk 0:02:37.1]} 8. Be3 {[%clk 0:02:54.4]}
8... e6 {[%clk 0:02:35.6]} 9. Nc3 {[%clk 0:02:54.3]} 9... Bb4 {[%clk 0:02:35.2]}
10. cxd5 {[%clk 0:02:53.8]} 10... Nxd5 {[%clk 0:02:34.8]} 11. Rc1 {[%clk
0:02:52.4]} 11... Qa5 {[%clk 0:02:33.5]} 12. Bd3 {[%clk 0:02:42.1]} 12... Nxc3
{[%clk 0:02:28.6]} 13. bxc3 {[%clk 0:02:42.2]} 13... Bxc3+ {[%clk 0:02:28.7]}
14. Kf1 {[%clk 0:02:42.6]} 14... Rd8 {[%clk 0:02:14.3]} 15. Qg4 {[%clk 0:02:36]}
15... O-O {[%clk 0:02:07.9]} 16. h4 {[%clk 0:02:14.4]} 16... f5 {[%clk
0:02:03.5]} 17. Qe2 {[%clk 0:02:10.9]} 17... Bxd4 {[%clk 0:01:53.5]} 18. Bg5
{[%clk 0:02:09.6]} 18... Rd6 {[%clk 0:01:48.8]} 19. Bc4 {[%clk 0:02:01.1]} 19...
Qe5 {[%clk 0:01:39.4]} 20. Qf3 {[%clk 0:01:58.7]} 20... Qe4 {[%clk 0:01:27.5]}
21. Qa3 {[%clk 0:01:34.2]} 21... Be5 {[%clk 0:01:04]} 22. Rh3 {[%clk 0:01:15.7]}
22... f4 {[%clk 0:01:00.7]} 23. Bb3 {[%clk 0:01:05.8]} 23... Nd4 {[%clk
0:00:56.5]} 24. Re1 {[%clk 0:01:00.4]} 24... Qf5 {[%clk 0:00:49.2]} 25. Be7
{[%clk 0:00:57.8]} 25... f3 {[%clk 0:00:42.4]} 26. Bxf8 {[%clk 0:00:54.7]} 26...
fxg2+ {[%clk 0:00:40.5]} 27. Kxg2 {[%clk 0:00:54.7]} 27... Qg4+ {[%clk
0:00:31.2]} 28. Rg3 {[%clk 0:00:34.3]} 28... Bxg3 {[%clk 0:00:30.8]} 29. fxg3
{[%clk 0:00:24.8]} 29... Qf3+ {[%clk 0:00:30.5]} 30. Kh3 {[%clk 0:00:21.5]}
30... Qxf8 {[%clk 0:00:29.7]} 31. Qc5 {[%clk 0:00:17.8]} 31... Kh8 {[%clk
0:00:14.9]} 32. Rf1 {[%clk 0:00:12.8]} 32... Qxf1+ {[%clk 0:00:13.3]} 0-1

[Event "*** SCC Grand Prix: Titled Tuesday Blitz"]
[Site "Chess.com"]
[Date "2020.10.13"]
[Round "8"]
[White "Indianlad"]
[Black "crescentmoon2411"]
[Result "1-0"]
[WhiteElo "2918"]
[BlackElo "2805"]
[TimeControl "180+1"]
[EndTime "11:33:22 PDT"]
[Termination "Indianlad won on time"]

1. Nf3 {[%clk 0:03:00.2]} 1... Nf6 {[%clk 0:02:59.8]} 2. d4 {[%clk 0:02:59.9]}
2... e6 {[%clk 0:02:55.1]} 3. c4 {[%clk 0:02:59.9]} 3... c5 {[%clk 0:02:53.5]}
4. d5 {[%clk 0:02:59.6]} 4... exd5 {[%clk 0:02:53.7]} 5. cxd5 {[%clk 0:03:00.3]}
5... d6 {[%clk 0:02:54.4]} 6. Nc3 {[%clk 0:03:00.5]} 6... g6 {[%clk 0:02:54.5]}
7. Bf4 {[%clk 0:02:56.9]} 7... a6 {[%clk 0:02:53.6]} 8. a4 {[%clk 0:02:56]} 8...
Bg7 {[%clk 0:02:53.2]} 9. h3 {[%clk 0:02:56.6]} 9... O-O {[%clk 0:02:51.7]} 10.
e3 {[%clk 0:02:57.2]} 10... Re8 {[%clk 0:02:46.6]} 11. Bd3 {[%clk 0:02:57.1]}
11... Nbd7 {[%clk 0:02:22.2]} 12. O-O {[%clk 0:02:42.3]} 12... Ne5 {[%clk
0:02:15.5]} 13. Nxe5 {[%clk 0:02:42.2]} 13... dxe5 {[%clk 0:02:15.5]} 14. Bg5
{[%clk 0:02:42.3]} 14... h6 {[%clk 0:02:00]} 15. Bh4 {[%clk 0:02:41.9]} 15... g5
{[%clk 0:01:33.6]} 16. Bg3 {[%clk 0:02:41.9]} 16... e4 {[%clk 0:01:34.1]} 17.
Bc2 {[%clk 0:02:34.3]} 17... Bf5 {[%clk 0:01:33.9]} 18. f4 {[%clk 0:02:11.9]}
18... g4 {[%clk 0:01:31.4]} 19. Bh4 {[%clk 0:02:11.6]} 19... Qd7 {[%clk
0:01:25.3]} 20. a5 {[%clk 0:02:10.7]} 20... gxh3 {[%clk 0:01:00.8]} 21. Ba4
{[%clk 0:02:10.2]} 21... Qd6 {[%clk 0:01:00.6]} 22. Bxe8 {[%clk 0:02:10.3]}
22... Rxe8 {[%clk 0:01:01]} 23. Bxf6 {[%clk 0:02:00.6]} 23... Qxf6 {[%clk
0:00:54.8]} 24. Qh5 {[%clk 0:02:00.9]} 24... hxg2 {[%clk 0:00:50.1]} 25. Kxg2
{[%clk 0:01:56.7]} 25... Bg6 {[%clk 0:00:29.2]} 26. Qh3 {[%clk 0:01:55.2]} 26...
Qf5 {[%clk 0:00:16.9]} 27. Rad1 {[%clk 0:01:24.3]} 27... Qxh3+ {[%clk
0:00:15.8]} 28. Kxh3 {[%clk 0:01:24.8]} 28... Bf5+ {[%clk 0:00:16.5]} 29. Kh2
{[%clk 0:01:22.9]} 29... Rd8 {[%clk 0:00:14.9]} 30. d6 {[%clk 0:01:22.7]} 30...
Kf8 {[%clk 0:00:05.8]} 31. Rd2 {[%clk 0:00:59.6]} 31... c4 {[%clk 0:00:05.4]}
32. Na4 {[%clk 0:00:57.5]} 32... Bd7 {[%clk 0:00:02.6]} 33. Nb6 {[%clk
0:00:40.4]} 33... Bb5 {[%clk 0:00:02.8]} 34. Rc1 {[%clk 0:00:41]} 34... Bf6
{[%clk 0:00:02.3]} 35. Nxc4 {[%clk 0:00:40.3]} 35... Rc8 {[%clk 0:00:02.3]} 36.
b3 {[%clk 0:00:40.7]} 36... Ke8 {[%clk 0:00:02]} 37. d7+ {[%clk 0:00:40.6]} 1-0

[Event "*** SCC Grand Prix: Titled Tuesday Blitz"]
[Site "Chess.com"]
[Date "2020.10.13"]
[Round "8"]
[White "HrvojeZagreb"]
[Black "Nara_Kh"]
[Result "1-0"]
[WhiteElo "2186"]
[BlackElo "2355"]
[TimeControl "180+1"]
[EndTime "11:33:22 PDT"]
[Termination "HrvojeZagreb won by checkmate"]

1. d4 {[%clk 0:03:00.9]} 1... d5 {[%clk 0:02:59.3]} 2. Bf4 {[%clk 0:03:00.1]}
2... c5 {[%clk 0:02:57.5]} 3. e3 {[%clk 0:02:59.4]} 3... Nc6 {[%clk 0:02:57]} 4.
Nc3 {[%clk 0:02:59.5]} 4... Nf6 {[%clk 0:02:54.8]} 5. Nb5 {[%clk 0:02:58.6]}
5... e5 {[%clk 0:02:41.9]} 6. dxe5 {[%clk 0:02:58.1]} 6... Ne4 {[%clk
0:02:22.1]} 7. Qxd5 {[%clk 0:02:57.2]} 7... Qxd5 {[%clk 0:01:57.4]} 8. Nc7+
{[%clk 0:02:56.1]} 8... Kd7 {[%clk 0:01:57]} 9. Nxd5 {[%clk 0:02:57]} 9... g5
{[%clk 0:01:53.2]} 10. Bg3 {[%clk 0:01:46.8]} 10... Nxg3 {[%clk 0:01:47.8]} 11.
hxg3 {[%clk 0:01:47.7]} 11... Nxe5 {[%clk 0:01:48.3]} 12. O-O-O {[%clk
0:01:36.9]} 12... Kc6 {[%clk 0:01:48.1]} 13. f4 {[%clk 0:01:15.7]} 13... Be6
{[%clk 0:01:33.9]} 14. Nc3 {[%clk 0:01:05.5]} 14... Ng4 {[%clk 0:01:27]} 15. Re1
{[%clk 0:00:46]} 15... Bg7 {[%clk 0:01:13.2]} 16. Nf3 {[%clk 0:00:24.6]} 16...
Nf2 {[%clk 0:00:50]} 17. Rh5 {[%clk 0:00:19.7]} 17... g4 {[%clk 0:00:30.8]} 18.
Ne5+ {[%clk 0:00:15.7]} 18... Bxe5 {[%clk 0:00:20.2]} 19. Rxe5 {[%clk
0:00:16.6]} 19... Rhd8 {[%clk 0:00:19.6]} 20. f5 {[%clk 0:00:16.2]} 20... Bd7
{[%clk 0:00:17.9]} 21. Bc4 {[%clk 0:00:15.5]} 21... f6 {[%clk 0:00:15.6]} 22.
Re7 {[%clk 0:00:14.6]} 22... Bxf5 {[%clk 0:00:14.8]} 23. Rf1 {[%clk 0:00:13.6]}
23... Nh1 {[%clk 0:00:13.4]} 24. Rxf5 {[%clk 0:00:13.5]} 24... Nxg3 {[%clk
0:00:13.8]} 25. Rxf6+ {[%clk 0:00:13.7]} 25... Rd6 {[%clk 0:00:13.2]} 26. Rff7
{[%clk 0:00:13.9]} 26... Rb8 {[%clk 0:00:07.1]} 27. a4 {[%clk 0:00:12.2]} 27...
a6 {[%clk 0:00:05.9]} 28. a5 {[%clk 0:00:12.1]} 28... h5 {[%clk 0:00:04.7]} 29.
Rc7# {[%clk 0:00:12.3]} 1-0

[Event "*** SCC Grand Prix: Titled Tuesday Blitz"]
[Site "Chess.com"]
[Date "2020.10.13"]
[Round "8"]
[White "DonBroca"]
[Black "davigator"]
[Result "0-1"]
[WhiteElo "2204"]
[BlackElo "2331"]
[TimeControl "180+1"]
[EndTime "11:33:23 PDT"]
[Termination "davigator won by resignation"]

1. e4 {[%clk 0:03:00.9]} 1... c5 {[%clk 0:02:58.9]} 2. Nf3 {[%clk 0:03:01.3]}
2... Nc6 {[%clk 0:02:58.1]} 3. d4 {[%clk 0:03:02.2]} 3... cxd4 {[%clk
0:02:58.7]} 4. Nxd4 {[%clk 0:03:03.1]} 4... Nf6 {[%clk 0:02:58.4]} 5. Nc3 {[%clk
0:03:02.7]} 5... d6 {[%clk 0:02:58.8]} 6. Be2 {[%clk 0:03:02.2]} 6... Bd7 {[%clk
0:02:56.1]} 7. Be3 {[%clk 0:03:02.2]} 7... a6 {[%clk 0:02:54.7]} 8. f3 {[%clk
0:03:02.7]} 8... e6 {[%clk 0:02:53.3]} 9. Qd2 {[%clk 0:03:02.5]} 9... b5 {[%clk
0:02:52.2]} 10. a4 {[%clk 0:02:57.1]} 10... b4 {[%clk 0:02:51.5]} 11. Na2 {[%clk
0:02:57.7]} 11... Qb8 {[%clk 0:02:45.7]} 12. Nxc6 {[%clk 0:02:48.2]} 12... Bxc6
{[%clk 0:02:45.5]} 13. Nxb4 {[%clk 0:02:48.2]} 13... Bb7 {[%clk 0:02:43.4]} 14.
O-O {[%clk 0:02:44.6]} 14... Be7 {[%clk 0:02:43.1]} 15. Rfd1 {[%clk 0:02:32.6]}
15... O-O {[%clk 0:02:42.5]} 16. b3 {[%clk 0:02:25.4]} 16... Rd8 {[%clk
0:02:33.5]} 17. Nd3 {[%clk 0:02:17.3]} 17... Qc7 {[%clk 0:02:30.1]} 18. a5
{[%clk 0:02:13.4]} 18... Nd7 {[%clk 0:02:28.4]} 19. Nf4 {[%clk 0:02:05.9]} 19...
Rac8 {[%clk 0:02:24.5]} 20. Bd3 {[%clk 0:02:03.3]} 20... Nc5 {[%clk 0:02:21.7]}
21. Bc4 {[%clk 0:01:33.4]} 21... Bf8 {[%clk 0:02:03.2]} 22. Qf2 {[%clk
0:01:24.8]} 22... Qc6 {[%clk 0:01:50.9]} 23. Rd2 {[%clk 0:01:15.4]} 23... Nd7
{[%clk 0:01:50.1]} 24. Qg3 {[%clk 0:00:57.8]} 24... Ne5 {[%clk 0:01:49]} 25. Bd3
{[%clk 0:00:48]} 25... Qc3 {[%clk 0:01:44.2]} 26. Rad1 {[%clk 0:00:30]} 26...
Qxa5 {[%clk 0:01:36.8]} 27. Nh5 {[%clk 0:00:26.5]} 27... Ng6 {[%clk 0:01:31.4]}
28. Nf4 {[%clk 0:00:25.3]} 28... Qc3 {[%clk 0:01:23.1]} 29. Nxg6 {[%clk
0:00:22.6]} 29... hxg6 {[%clk 0:01:22.5]} 30. Bf4 {[%clk 0:00:22.7]} 30... e5
{[%clk 0:01:19.6]} 31. Be3 {[%clk 0:00:22.1]} 31... d5 {[%clk 0:01:15]} 32. exd5
{[%clk 0:00:19.9]} 32... Rxd5 {[%clk 0:01:14.9]} 33. Bg5 {[%clk 0:00:17.9]}
33... Qc5+ {[%clk 0:01:09.4]} 34. Kh1 {[%clk 0:00:16.9]} 34... a5 {[%clk
0:01:04.6]} 35. Bc4 {[%clk 0:00:17.2]} 35... Rxd2 {[%clk 0:01:03.9]} 36. Rxd2
{[%clk 0:00:18.1]} 36... Qc6 {[%clk 0:01:00.5]} 37. Qe1 {[%clk 0:00:18.3]} 37...
a4 {[%clk 0:00:58.4]} 38. Qa1 {[%clk 0:00:16.3]} 38... axb3 {[%clk 0:00:57.1]}
39. Bxb3 {[%clk 0:00:15.5]} 39... Qc7 {[%clk 0:00:54.5]} 40. Qe1 {[%clk
0:00:14.3]} 40... Bb4 {[%clk 0:00:52.4]} 41. Qe4 {[%clk 0:00:10.6]} 41... Bxd2
{[%clk 0:00:52]} 42. Bxd2 {[%clk 0:00:11.5]} 42... Rd8 {[%clk 0:00:51.4]} 43.
Be1 {[%clk 0:00:09.6]} 43... Bxe4 {[%clk 0:00:46]} 0-1

[Event "*** SCC Grand Prix: Titled Tuesday Blitz"]
[Site "Chess.com"]
[Date "2020.10.13"]
[Round "8"]
[White "Khnykin_Nikolay"]
[Black "HanSchut"]
[Result "1-0"]
[WhiteElo "2053"]
[BlackElo "2198"]
[TimeControl "180+1"]
[EndTime "11:33:23 PDT"]
[Termination "Khnykin_Nikolay won on time"]

1. e4 {[%clk 0:02:09.9]} 1... c5 {[%clk 0:02:59.4]} 2. Nc3 {[%clk 0:02:07.1]}
2... a6 {[%clk 0:02:58.8]} 3. d4 {[%clk 0:02:06.7]} 3... cxd4 {[%clk 0:02:55.1]}
4. Qxd4 {[%clk 0:02:06.4]} 4... Nc6 {[%clk 0:02:53.2]} 5. Qd2 {[%clk 0:02:05.6]}
5... g6 {[%clk 0:02:49.2]} 6. b3 {[%clk 0:02:04.8]} 6... Bh6 {[%clk 0:02:42.9]}
7. f4 {[%clk 0:02:04.2]} 7... e5 {[%clk 0:02:39.5]} 8. g3 {[%clk 0:01:56.1]}
8... exf4 {[%clk 0:02:31.5]} 9. gxf4 {[%clk 0:01:55.2]} 9... Qh4+ {[%clk
0:02:16.6]} 10. Qf2 {[%clk 0:01:48.4]} 10... Qxf2+ {[%clk 0:02:16.1]} 11. Kxf2
{[%clk 0:01:47.9]} 11... Nge7 {[%clk 0:02:11.8]} 12. Nf3 {[%clk 0:01:46.8]}
12... d5 {[%clk 0:02:01.3]} 13. exd5 {[%clk 0:01:31.5]} 13... Nb4 {[%clk
0:02:01]} 14. Ba3 {[%clk 0:01:15.6]} 14... Nxc2 {[%clk 0:01:55]} 15. Bxe7 {[%clk
0:01:11.9]} 15... Kxe7 {[%clk 0:01:54.7]} 16. Rc1 {[%clk 0:01:09.9]} 16... Bf5
{[%clk 0:01:41.6]} 17. Rd1 {[%clk 0:00:46.7]} 17... Bxf4 {[%clk 0:01:28.4]} 18.
Bd3 {[%clk 0:00:43.1]} 18... Ne3 {[%clk 0:01:16.2]} 19. Rhe1 {[%clk 0:00:28.8]}
19... Rhe8 {[%clk 0:00:41.2]} 20. Bxf5 {[%clk 0:00:26.5]} 20... Kf6 {[%clk
0:00:28.4]} 21. Rd4 {[%clk 0:00:16.7]} 21... Nxf5 {[%clk 0:00:15.6]} 22. Rxf4
{[%clk 0:00:15.4]} 22... Rac8 {[%clk 0:00:12.3]} 23. Ne4+ {[%clk 0:00:14.1]}
23... Kg7 {[%clk 0:00:09.8]} 24. Nfg5 {[%clk 0:00:09.1]} 24... Rc2+ {[%clk
0:00:08.5]} 25. Kf3 {[%clk 0:00:08.2]} 25... h6 {[%clk 0:00:05.3]} 26. Nxf7
{[%clk 0:00:06.6]} 1-0

[Event "*** SCC Grand Prix: Titled Tuesday Blitz"]
[Site "Chess.com"]
[Date "2020.10.13"]
[Round "8"]
[White "mirceaparligras"]
[Black "Susal_De_Silva"]
[Result "1-0"]
[WhiteElo "2641"]
[BlackElo "2468"]
[TimeControl "180+1"]
[EndTime "11:33:24 PDT"]
[Termination "mirceaparligras won by resignation"]

1. d4 {[%clk 0:03:00.9]} 1... Nf6 {[%clk 0:02:59.7]} 2. c4 {[%clk 0:03:00.6]}
2... e6 {[%clk 0:02:59.6]} 3. Nf3 {[%clk 0:03:00]} 3... b6 {[%clk 0:02:59.6]} 4.
Bf4 {[%clk 0:02:59.1]} 4... Bb7 {[%clk 0:03:00.5]} 5. e3 {[%clk 0:02:58]} 5...
Bb4+ {[%clk 0:02:56.2]} 6. Nfd2 {[%clk 0:02:57.5]} 6... O-O {[%clk 0:02:56]} 7.
a3 {[%clk 0:02:57.1]} 7... Be7 {[%clk 0:02:56.2]} 8. Nc3 {[%clk 0:02:56.9]} 8...
d6 {[%clk 0:02:56.4]} 9. Qc2 {[%clk 0:02:48.5]} 9... Nbd7 {[%clk 0:02:55.7]} 10.
Bd3 {[%clk 0:02:40.8]} 10... e5 {[%clk 0:02:51.7]} 11. Bg3 {[%clk 0:02:22.6]}
11... exd4 {[%clk 0:02:40.5]} 12. exd4 {[%clk 0:02:22.2]} 12... Bxg2 {[%clk
0:02:26.1]} 13. Rg1 {[%clk 0:02:21.3]} 13... Bb7 {[%clk 0:02:26.6]} 14. O-O-O
{[%clk 0:02:20.4]} 14... d5 {[%clk 0:02:24.6]} 15. cxd5 {[%clk 0:02:13.6]} 15...
h6 {[%clk 0:02:24]} 16. Bf4 {[%clk 0:02:05.4]} 16... Kh8 {[%clk 0:02:23.3]} 17.
Bc4 {[%clk 0:02:00.3]} 17... Bd6 {[%clk 0:02:19.4]} 18. Be3 {[%clk 0:01:49.9]}
18... b5 {[%clk 0:02:04]} 19. Ba2 {[%clk 0:01:42]} 19... Nb6 {[%clk 0:02:01]}
20. Qf5 {[%clk 0:01:38.8]} 20... Qd7 {[%clk 0:01:55.2]} 21. Qf3 {[%clk
0:01:31.2]} 21... Nh7 {[%clk 0:00:59.8]} 22. Qh5 {[%clk 0:00:54.6]} 22... b4
{[%clk 0:00:53.5]} 23. axb4 {[%clk 0:00:50.6]} 23... Bxb4 {[%clk 0:00:48.7]} 24.
Bxh6 {[%clk 0:00:35]} 24... gxh6 {[%clk 0:00:44.6]} 25. Qxh6 {[%clk 0:00:35.4]}
25... Rg8 {[%clk 0:00:41.5]} 26. Bb1 {[%clk 0:00:33.8]} 26... f5 {[%clk
0:00:35.8]} 27. Nf3 {[%clk 0:00:30.3]} 27... Bxc3 {[%clk 0:00:33.3]} 28. bxc3
{[%clk 0:00:30.1]} 28... Rxg1 {[%clk 0:00:15.6]} 29. Rxg1 {[%clk 0:00:29.1]}
29... Rg8 {[%clk 0:00:16.5]} 30. Rxg8+ {[%clk 0:00:27.9]} 30... Kxg8 {[%clk
0:00:17.4]} 31. Ne5 {[%clk 0:00:28.3]} 31... Qg7 {[%clk 0:00:12.2]} 32. Qe6+
{[%clk 0:00:23.5]} 32... Kh8 {[%clk 0:00:12.6]} 33. Ng6+ {[%clk 0:00:23]} 33...
Qxg6 {[%clk 0:00:11.9]} 34. Qxg6 {[%clk 0:00:23.9]} 1-0

[Event "*** SCC Grand Prix: Titled Tuesday Blitz"]
[Site "Chess.com"]
[Date "2020.10.13"]
[Round "8"]
[White "wannabe2700"]
[Black "Barmen_EV"]
[Result "1-0"]
[WhiteElo "2707"]
[BlackElo "2493"]
[TimeControl "180+1"]
[EndTime "11:33:24 PDT"]
[Termination "wannabe2700 won on time"]

1. e4 {[%clk 0:03:00.9]} 1... c5 {[%clk 0:02:58.5]} 2. d4 {[%clk 0:03:01]} 2...
cxd4 {[%clk 0:02:58]} 3. Nf3 {[%clk 0:03:01.9]} 3... e5 {[%clk 0:02:56.9]} 4. c3
{[%clk 0:03:02]} 4... dxc3 {[%clk 0:02:57.2]} 5. Nxc3 {[%clk 0:03:02.9]} 5...
Nc6 {[%clk 0:02:57.5]} 6. Bc4 {[%clk 0:03:03.1]} 6... Nf6 {[%clk 0:02:57.8]} 7.
Ng5 {[%clk 0:02:59.4]} 7... d5 {[%clk 0:02:57.9]} 8. exd5 {[%clk 0:02:32]} 8...
Nd4 {[%clk 0:02:57.1]} 9. d6 {[%clk 0:02:21.9]} 9... Bxd6 {[%clk 0:02:57]} 10.
Nxf7 {[%clk 0:02:21.9]} 10... Qe7 {[%clk 0:02:56.8]} 11. Nxh8 {[%clk 0:02:19.8]}
11... Bg4 {[%clk 0:02:56.8]} 12. f3 {[%clk 0:02:16]} 12... Bh5 {[%clk
0:02:44.5]} 13. Qa4+ {[%clk 0:02:08.2]} 13... Kf8 {[%clk 0:02:35.2]} 14. O-O
{[%clk 0:01:55.2]} 14... Bc5 {[%clk 0:02:35.1]} 15. Kh1 {[%clk 0:01:53.9]} 15...
Be8 {[%clk 0:02:29.6]} 16. Qd1 {[%clk 0:01:52.3]} 16... Rd8 {[%clk 0:02:29.8]}
17. Ne4 {[%clk 0:01:35.8]} 17... Nf5 {[%clk 0:02:25.3]} 18. Qe1 {[%clk
0:01:32.5]} 18... Bb4 {[%clk 0:01:53.8]} 19. Bd2 {[%clk 0:01:23.8]} 19... Bxd2
{[%clk 0:01:53.3]} 20. Nxd2 {[%clk 0:01:23.3]} 20... Qb4 {[%clk 0:01:54.2]} 21.
Rd1 {[%clk 0:01:12.9]} 21... Qxb2 {[%clk 0:01:38.1]} 22. Ne4 {[%clk 0:01:03.1]}
22... Rd4 {[%clk 0:01:08.3]} 23. Bb3 {[%clk 0:00:57.7]} 23... Nh5 {[%clk
0:00:59.1]} 24. Qa5 {[%clk 0:00:44]} 24... Nf4 {[%clk 0:00:21.1]} 25. Rd2 {[%clk
0:00:19.6]} 25... Rxd2 {[%clk 0:00:09.1]} 26. Nxd2 {[%clk 0:00:18.4]} 26... Ke7
{[%clk 0:00:02.7]} 27. Re1 {[%clk 0:00:16.5]} 1-0

[Event "*** SCC Grand Prix: Titled Tuesday Blitz"]
[Site "Chess.com"]
[Date "2020.10.13"]
[Round "8"]
[White "GMSrinath"]
[Black "Eliwood44"]
[Result "1-0"]
[WhiteElo "2800"]
[BlackElo "2427"]
[TimeControl "180+1"]
[EndTime "11:33:25 PDT"]
[Termination "GMSrinath won by resignation"]

1. Nf3 {[%clk 0:03:00]} 1... Nf6 {[%clk 0:02:59.9]} 2. c4 {[%clk 0:02:59.8]}
2... e6 {[%clk 0:03:00.2]} 3. b3 {[%clk 0:02:59.2]} 3... d5 {[%clk 0:03:00.2]}
4. Bb2 {[%clk 0:02:59.8]} 4... c5 {[%clk 0:03:00.2]} 5. e3 {[%clk 0:03:00.3]}
5... Nc6 {[%clk 0:03:00.1]} 6. cxd5 {[%clk 0:03:00.1]} 6... Nxd5 {[%clk
0:03:01]} 7. d4 {[%clk 0:03:00.8]} 7... cxd4 {[%clk 0:03:00.6]} 8. Nxd4 {[%clk
0:03:01.7]} 8... Bb4+ {[%clk 0:02:59.9]} 9. Nd2 {[%clk 0:03:00.8]} 9... Nxd4
{[%clk 0:02:04.9]} 10. Bxd4 {[%clk 0:03:01.7]} 10... O-O {[%clk 0:01:52.7]} 11.
a3 {[%clk 0:02:59.4]} 11... e5 {[%clk 0:01:45.7]} 12. Bxe5 {[%clk 0:02:51.5]}
12... Re8 {[%clk 0:01:45.5]} 13. axb4 {[%clk 0:02:43.4]} 13... Rxe5 {[%clk
0:01:42.4]} 14. Nf3 {[%clk 0:02:41.7]} 14... Re8 {[%clk 0:01:41.9]} 15. Qd4
{[%clk 0:02:40.9]} 15... Be6 {[%clk 0:01:29.9]} 16. Be2 {[%clk 0:02:38.9]} 16...
Qe7 {[%clk 0:01:27.6]} 17. b5 {[%clk 0:02:34.8]} 17... Red8 {[%clk 0:01:24.2]}
18. O-O {[%clk 0:02:34.2]} 18... Nb4 {[%clk 0:01:23.7]} 19. Qe4 {[%clk 0:02:29]}
19... Rd7 {[%clk 0:01:09.6]} 20. Nd4 {[%clk 0:02:19.8]} 20... h6 {[%clk
0:00:37.6]} 21. Nxe6 {[%clk 0:02:03.6]} 21... fxe6 {[%clk 0:00:38]} 22. Bg4
{[%clk 0:02:02.7]} 22... Re8 {[%clk 0:00:29.5]} 23. Rxa7 {[%clk 0:01:51.1]}
23... Nd5 {[%clk 0:00:25]} 24. Rfa1 {[%clk 0:01:41.3]} 24... Nf6 {[%clk
0:00:23.5]} 25. Qc4 {[%clk 0:01:32.4]} 25... Rc7 {[%clk 0:00:18.2]} 26. Qe2
{[%clk 0:01:30.2]} 26... Qc5 {[%clk 0:00:14.9]} 27. h3 {[%clk 0:01:22.9]} 27...
Nxg4 {[%clk 0:00:12.8]} 28. hxg4 {[%clk 0:01:23.8]} 28... Rf8 {[%clk 0:00:11.6]}
29. R7a4 {[%clk 0:01:18.5]} 29... Rcf7 {[%clk 0:00:11.2]} 30. Rf1 {[%clk
0:01:17.4]} 30... Qd5 {[%clk 0:00:09.8]} 31. Qc4 {[%clk 0:01:16]} 31... Qe5
{[%clk 0:00:08.8]} 32. Qe4 {[%clk 0:01:09.2]} 32... Qb2 {[%clk 0:00:08.8]} 33.
Qxe6 {[%clk 0:01:08]} 33... Kh8 {[%clk 0:00:09.2]} 34. Rf4 {[%clk 0:01:05.9]}
34... Rxf4 {[%clk 0:00:08.6]} 35. exf4 {[%clk 0:01:06.8]} 35... Rxf4 {[%clk
0:00:08.6]} 36. g3 {[%clk 0:00:43.5]} 36... Rb4 {[%clk 0:00:07.9]} 37. Qc8+
{[%clk 0:00:40.9]} 37... Kh7 {[%clk 0:00:06.7]} 38. Qf5+ {[%clk 0:00:41.8]}
38... Kh8 {[%clk 0:00:06.8]} 39. Re1 {[%clk 0:00:40.5]} 39... Qxb3 {[%clk
0:00:02.6]} 40. Re8+ {[%clk 0:00:39.6]} 1-0

[Event "*** SCC Grand Prix: Titled Tuesday Blitz"]
[Site "Chess.com"]
[Date "2020.10.13"]
[Round "8"]
[White "Hikaru"]
[Black "Parhamov"]
[Result "0-1"]
[WhiteElo "3204"]
[BlackElo "2984"]
[TimeControl "180+1"]
[EndTime "11:33:27 PDT"]
[Termination "Parhamov won by resignation"]

1. e4 {[%clk 0:03:00.9]} 1... e5 {[%clk 0:02:59.8]} 2. Nf3 {[%clk 0:03:00.1]}
2... Nc6 {[%clk 0:03:00.3]} 3. Bb5 {[%clk 0:03:00.7]} 3... Nf6 {[%clk 0:03:00]}
4. d3 {[%clk 0:03:00.3]} 4... Bc5 {[%clk 0:02:59.7]} 5. Bxc6 {[%clk 0:03:00.4]}
5... dxc6 {[%clk 0:03:00]} 6. Nbd2 {[%clk 0:03:01.3]} 6... Nd7 {[%clk
0:02:59.7]} 7. Qe2 {[%clk 0:02:59.1]} 7... Qe7 {[%clk 0:02:59.3]} 8. Nf1 {[%clk
0:02:57.5]} 8... a5 {[%clk 0:02:58.3]} 9. Ng3 {[%clk 0:02:57.4]} 9... Nb6 {[%clk
0:02:58]} 10. Nf5 {[%clk 0:02:54.6]} 10... Bxf5 {[%clk 0:02:57.1]} 11. exf5
{[%clk 0:02:55.4]} 11... f6 {[%clk 0:02:57.5]} 12. Nd2 {[%clk 0:02:55.5]} 12...
a4 {[%clk 0:02:57]} 13. a3 {[%clk 0:02:53.2]} 13... Nc8 {[%clk 0:02:36.7]} 14.
Ne4 {[%clk 0:02:51.2]} 14... Bb6 {[%clk 0:02:36.7]} 15. Bd2 {[%clk 0:02:40.1]}
15... Nd6 {[%clk 0:02:35.5]} 16. g4 {[%clk 0:02:31.8]} 16... Nxe4 {[%clk
0:02:04.8]} 17. Qxe4 {[%clk 0:02:21.7]} 17... Qc5 {[%clk 0:02:04.9]} 18. O-O-O
{[%clk 0:02:21.8]} 18... Qd5 {[%clk 0:02:04.1]} 19. f4 {[%clk 0:02:06.9]} 19...
O-O-O {[%clk 0:01:04.9]} 20. Qxa4 {[%clk 0:01:45.1]} 20... Qa2 {[%clk 0:01:05]}
21. c3 {[%clk 0:01:41.9]} 21... exf4 {[%clk 0:00:44.3]} 22. Kc2 {[%clk
0:00:52.1]} 22... f3 {[%clk 0:00:35.5]} 23. Qe4 {[%clk 0:00:49.1]} 23... f2
{[%clk 0:00:33.9]} 24. d4 {[%clk 0:00:40.7]} 24... Rhe8 {[%clk 0:00:32.6]} 25.
Qf3 {[%clk 0:00:37.7]} 25... c5 {[%clk 0:00:33.1]} 26. Be3 {[%clk 0:00:32.8]}
26... cxd4 {[%clk 0:00:33.3]} 27. Bxf2 {[%clk 0:00:21.7]} 27... d3+ {[%clk
0:00:14.5]} 28. Rxd3 {[%clk 0:00:21.9]} 28... Rxd3 {[%clk 0:00:14.7]} 29. Qxd3
{[%clk 0:00:20.3]} 29... Bxf2 {[%clk 0:00:14.4]} 30. Rd1 {[%clk 0:00:20.9]}
30... Qf7 {[%clk 0:00:14.4]} 31. Qf3 {[%clk 0:00:19.3]} 31... Bb6 {[%clk
0:00:14.6]} 32. h4 {[%clk 0:00:19.5]} 32... Kb8 {[%clk 0:00:15.2]} 33. g5 {[%clk
0:00:18.6]} 33... Qc4 {[%clk 0:00:15.8]} 34. Rd7 {[%clk 0:00:16.6]} 34... Qa4+
{[%clk 0:00:15.7]} 35. Kb1 {[%clk 0:00:15.2]} 35... Qxd7 {[%clk 0:00:16.2]} 0-1